bitfinex/quotes_BTCUSD_20220306
["timestamp","ask_amount","ask_price","bid_price","bid_amount"]
[1646605394756,0.21991171,39169.0,39168.0,0.383457]
[1646605398693,0.21806445,39169.0,39168.0,0.383457]
[1646605398899,0.21806445,39169.0,39168.0,0.747304]
[1646605399095,0.21806445,39169.0,39168.0,0.447304]
[1646605399895,0.21806445,39169.0,39168.0,0.747304]
[1646605401294,0.21806445,39169.0,39168.0,0.847304]
[1646605404146,0.21806445,39169.0,39168.0,0.84969418]
[1646605407398,0.00021348,39170.0,39168.0,0.84969418]
[1646605407600,0.00021348,39170.0,39169.0,1.56789618]
[1646605407798,0.0011,39180.0,39171.0,0.06383]
[1646605407997,0.0011,39180.0,39174.0,0.063832]
[1646605408199,0.00085377,39177.0,39175.0,0.383457]
[1646605408398,0.00085377,39177.0,39176.0,0.40845806]
[1646605408597,0.00085377,39177.0,39176.0,0.79191506]
[1646605408799,0.00085377,39177.0,39176.0,0.80222405]
[1646605408998,0.0011,39180.0,39177.0,0.383457]
[1646605409202,0.0011,39180.0,39178.0,0.063832]
[1646605409450,0.0011,39180.0,39179.0,0.383457]
[1646605412951,0.0011,39180.0,39178.0,0.002]
[1646605413795,0.1570338,39180.0,39178.0,0.002]
[1646605413995,0.0011,39180.0,39178.0,0.002]
[1646605414195,0.0011,39180.0,39179.0,0.00102991]
[1646605418142,0.17535012,39180.0,39179.0,0.00102991]
[1646605418843,0.0011,39180.0,39179.0,0.00102991]
[1646605419445,0.0011,39180.0,39178.0,0.0122381]
[1646605419645,0.0011,39180.0,39178.0,0.0020211]
[1646605428799,0.0011,39183.0,39182.0,0.00552261]
[1646605429005,0.384557,39183.0,39182.0,0.00552261]
[1646605430001,0.58647064,39183.0,39182.0,0.00552261]
[1646605430204,0.20301364,39183.0,39182.0,0.00552261]
[1646605431003,0.59285805,39183.0,39182.0,0.00552261]
[1646605431203,0.19940105,39183.0,39182.0,0.00552261]
[1646605431843,0.58285805,39183.0,39182.0,0.00552261]
[1646605432045,0.19940105,39183.0,39182.0,0.00552261]
[1646605432244,0.19440105,39183.0,39182.0,0.00552261]
[1646605434449,0.19440105,39183.0,39182.0,0.007532]
[1646605436295,0.57785805,39183.0,39182.0,0.007532]
[1646605436496,0.19440105,39183.0,39182.0,0.007532]
[1646605436695,0.30601805,39183.0,39182.0,0.007532]
[1646605437096,0.57785805,39183.0,39182.0,0.007532]
[1646605437296,0.19440105,39183.0,39182.0,0.007532]
[1646605437504,1.26273805,39183.0,39182.0,0.007532]
[1646605437699,1.26273805,39183.0,39173.0,0.063847]
[1646605437700,0.7812,39182.0,39169.0,0.60234114]
[1646605437899,0.7812,39182.0,39169.0,0.39306123]
[1646605437900,0.02552,39177.0,39169.0,0.39306123]
[1646605438102,0.02552,39173.0,39169.0,0.39306123]
[1646605438297,0.02552,39171.0,39169.0,0.39306123]
[1646605438697,0.02552,39171.0,39169.0,0.37876123]
[1646605439346,0.02552,39172.0,39169.0,0.37876123]
[1646605440349,0.20133474,39172.0,39169.0,0.37876123]
[1646605441450,0.383457,39174.0,39169.0,0.37376123]
[1646605441652,0.02552,39173.0,39169.0,0.37376123]
[1646605442552,0.22352512,39173.0,39169.0,0.37376123]
[1646605442752,0.02552,39171.0,39169.0,0.37376123]
[1646605443796,0.02552,39172.0,39169.0,0.37376123]
[1646605444395,0.383457,39171.0,39169.0,0.37376123]
[1646605444594,0.383457,39171.0,39170.0,0.00089134]
[1646605445199,0.38984784,39171.0,39169.0,0.36965257]
[1646605445396,0.00639084,39170.0,39169.0,0.36965257]
[1646605445596,0.00639084,39170.0,39169.0,0.37987257]
[1646605445797,0.00639067,39170.0,39169.0,0.36965257]
[1646605446197,0.00639051,39170.0,39169.0,0.36965257]
[1646605447654,0.38984751,39170.0,39169.0,0.36965257]
[1646605448050,0.00639051,39170.0,39169.0,0.36965257]
[1646605448954,0.38984751,39170.0,39169.0,0.36965257]
[1646605449551,0.00639051,39170.0,39169.0,0.36965257]
[1646605449753,0.38984751,39170.0,39169.0,0.37076991]
[1646605449953,0.00639051,39170.0,39169.0,0.37076991]
[1646605450155,0.38984751,39170.0,39169.0,0.37076991]
[1646605450803,0.88984751,39170.0,39169.0,0.37076991]
[1646605451704,0.61800751,39170.0,39169.0,0.37076991]
[1646605453306,0.50639051,39170.0,39169.0,0.37076991]
[1646605454005,0.88984751,39170.0,39169.0,0.37076991]
[1646605454770,0.38984751,39170.0,39169.0,0.37076991]
[1646605454969,0.00639051,39170.0,39169.0,0.37076991]
[1646605456567,0.00639035,39170.0,39169.0,0.37076991]
[1646605457368,0.00639035,39170.0,39169.0,0.54697661]
[1646605457768,0.00639035,39170.0,39169.0,0.37076991]
[1646605458800,0.20110997,39174.0,39172.0,0.01135543]
[1646605459102,0.383457,39173.0,39172.0,0.01135543]
[1646605459299,0.408977,39173.0,39172.0,0.01135543]
[1646605459498,0.383457,39173.0,39172.0,0.01135543]
[1646605459697,0.408977,39173.0,39172.0,0.01135543]
[1646605464258,0.458977,39173.0,39172.0,0.01246479]
[1646605465469,0.80672,39172.0,39169.0,0.36965257]
[1646605465704,1.34179325,39170.0,39169.0,0.36965257]
[1646605465903,1.39179325,39170.0,39169.0,0.36965257]
[1646605466203,1.69193988,39170.0,39169.0,0.36965257]
[1646605466809,1.74323988,39170.0,39169.0,0.36965257]
[1646605468804,2.00463158,39170.0,39169.0,0.36965257]
[1646605469104,2.10460759,39170.0,39169.0,0.36965257]
[1646605469353,1.84323988,39170.0,39169.0,0.36965257]
[1646605469549,2.10460759,39170.0,39169.0,0.36965257]
[1646605472254,1.84323988,39170.0,39169.0,0.36965257]
[1646605472955,2.10460759,39170.0,39169.0,0.36965257]
[1646605473802,2.10606915,39170.0,39169.0,0.36965257]
[1646605476005,1.84470144,39170.0,39169.0,0.36965257]
[1646605476206,2.10605724,39170.0,39169.0,0.36965257]
[1646605477054,2.11234639,39170.0,39169.0,0.36965257]
[1646605477452,1.15562639,39170.0,39169.0,0.36965257]
[1646605477652,1.05562639,39170.0,39169.0,0.36965257]
[1646605477851,1.20562639,39170.0,39169.0,0.36965257]
[1646605478053,0.94427059,39170.0,39169.0,0.36965257]
[1646605478955,1.20562639,39170.0,39169.0,0.36965257]
[1646605479353,1.98682639,39170.0,39169.0,0.36965257]
[1646605479555,1.20562639,39170.0,39169.0,0.36965257]
[1646605479755,1.23114639,39170.0,39169.0,0.36965257]
[1646605480155,0.96979059,39170.0,39169.0,0.36965257]
[1646605480354,1.28341755,39170.0,39169.0,0.36965257]
[1646605480600,2.17737755,39170.0,39169.0,0.36965257]
[1646605480797,2.16461755,39170.0,39169.0,0.36965257]
[1646605481699,2.20217738,39170.0,39169.0,0.36965257]
[1646605482110,1.88855042,39170.0,39169.0,0.36965257]
[1646605482502,1.98855042,39170.0,39169.0,0.36965257]
[1646605482701,2.35444854,39170.0,39169.0,0.36965257]
[1646605484104,1.98855042,39170.0,39169.0,0.36965257]
[1646605484349,0.17164325,39162.0,39153.0,0.54684986]
[1646605484555,0.23552625,39162.0,39153.0,0.24684986]
[1646605484753,0.383457,39161.0,39158.0,0.010223]
[1646605484950,0.111617,39158.0,39156.0,0.20819554]
[1646605485149,0.383457,39161.0,39156.0,0.20819554]
[1646605485750,0.111617,39159.0,39153.0,0.12794983]
[1646605485950,0.063883,39162.0,39152.0,0.003]
[1646605486153,0.063883,39162.0,39153.0,0.00019858]
[1646605486949,0.383457,39160.0,39156.0,0.1811845]
[1646605488099,0.59741005,39161.0,39156.0,0.1811845]
[1646605488300,0.383457,39161.0,39156.0,0.1811845]
[1646605488902,0.3851905,39161.0,39156.0,0.1811845]
[1646605489500,0.3851905,39161.0,39153.0,0.06408108]
[1646605489501,0.3851905,39161.0,39153.0,0.0638825]
[1646605489702,0.0656195,39161.0,39153.0,0.06408108]
[1646605489901,0.0656195,39161.0,39153.0,0.063985]
[1646605490502,0.0656195,39161.0,39155.0,0.1529182]
[1646605491401,0.0017335,39161.0,39155.0,0.1529182]
[1646605492073,0.0017335,39161.0,39154.0,0.06388022]
[1646605492274,0.0017335,39161.0,39154.0,0.010224]
[1646605492678,0.0017335,39161.0,39153.0,0.00019858]
[1646605493076,0.958968,39163.0,39161.0,0.00212011]
[1646605493278,0.54669808,39162.0,39161.0,0.00212011]
[1646605493678,0.38974695,39162.0,39161.0,0.00212011]
[1646605495705,0.58579008,39162.0,39161.0,0.00212011]
[1646605496906,0.38974695,39162.0,39161.0,0.00212011]
[1646605499351,0.38974695,39162.0,39161.0,0.00405359]
[1646605499753,0.00628995,39162.0,39161.0,0.00405359]
[1646605500151,0.38974695,39162.0,39161.0,0.00405359]
[1646605503904,0.57486046,39162.0,39161.0,0.00405359]
[1646605504107,0.38974695,39162.0,39161.0,0.00405359]
[1646605508055,0.65127071,39162.0,39161.0,0.00405359]
[1646605508259,0.38974695,39162.0,39161.0,0.00405359]
[1646605510998,0.38473545,39162.0,39161.0,0.00405359]
[1646605511398,0.64625921,39162.0,39161.0,0.00405359]
[1646605511600,0.38473545,39162.0,39161.0,0.00405359]
[1646605514656,0.94625921,39162.0,39161.0,0.00405359]
[1646605514856,0.38473545,39162.0,39161.0,0.00405359]
[1646605515355,0.64625921,39162.0,39161.0,0.00405359]
[1646605515557,0.38473545,39162.0,39161.0,0.00405359]
[1646605517954,0.38473545,39162.0,39161.0,0.199782]
[1646605518203,0.38473545,39162.0,39161.0,0.00405359]
[1646605518703,0.64625921,39162.0,39161.0,0.00405359]
[1646605519103,0.64625921,39162.0,39161.0,0.19911225]
[1646605520307,0.26152376,39163.0,39161.0,0.19911225]
[1646605520507,0.20934238,39163.0,39161.0,0.21080773]
[1646605521306,0.31382852,39167.0,39161.0,0.21080773]
[1646605521307,0.20934238,39164.0,39162.0,0.1689454]
[1646605521858,0.20934238,39164.0,39163.0,0.3]
[1646605522063,0.20934238,39166.0,39163.0,0.3]
[1646605522358,0.002,39167.0,39163.0,0.38576]
[1646605522555,0.20934238,39168.0,39163.0,0.38576]
[1646605523155,0.20934238,39169.0,39163.0,0.38576]
[1646605523355,0.03917608,39170.0,39163.0,0.38576]
[1646605523558,0.5927217,39169.0,39168.0,0.1919295]
[1646605523760,0.59272015,39169.0,39168.0,0.1919295]
[1646605523956,0.383457,39169.0,39168.0,0.1919295]
[1646605524158,0.59272197,39169.0,39168.0,0.1919295]
[1646605524357,0.03917608,39170.0,39168.0,0.1919295]
[1646605524557,0.21087743,39170.0,39168.0,0.17454653]
[1646605524758,0.21087743,39170.0,39168.0,0.23502183]
[1646605524962,0.00161625,39170.0,39169.0,0.683457]
[1646605529556,0.00161625,39170.0,39169.0,0.68527417]
[1646605530762,0.00161625,39170.0,39169.0,0.83527417]
[1646605530961,0.00079764,39177.0,39169.0,1.06705473]
[1646605531158,0.00079764,39177.0,39174.0,0.447284]
[1646605531358,0.00079764,39177.0,39174.0,0.99872731]
[1646605531562,0.00075319,39179.0,39174.0,0.99872731]
[1646605531758,0.00075319,39179.0,39176.0,0.383457]
[1646605531959,0.00075319,39179.0,39176.0,0.683457]
[1646605532158,0.00075319,39179.0,39176.0,0.74729031]
[1646605532358,0.00075319,39179.0,39177.0,0.00931994]
[1646605532557,0.00075319,39179.0,39178.0,0.383457]
[1646605537856,0.00075319,39179.0,39178.0,0.683457]
[1646605539162,0.00075319,39179.0,39178.0,0.68525723]
[1646605539961,0.00075319,39179.0,39178.0,0.30180023]
[1646605540162,0.00075319,39179.0,39178.0,0.68525723]
[1646605540363,0.00075319,39179.0,39178.0,0.38525723]
[1646605544555,0.00075319,39179.0,39178.0,0.00180023]
[1646605545755,0.00075319,39179.0,39178.0,0.38525723]
[1646605546556,0.00075319,39179.0,39178.0,0.00180023]
[1646605546959,0.00075319,39179.0,39178.0,0.38525723]
[1646605547160,0.00075319,39179.0,39178.0,0.00180023]
[1646605547858,0.00075319,39179.0,39178.0,0.38525723]
[1646605548105,0.00075319,39179.0,39178.0,0.00180023]
[1646605548307,0.00075319,39179.0,39178.0,0.38525723]
[1646605548512,0.00075319,39179.0,39178.0,0.00180023]
[1646605548710,0.0033,39185.0,39178.0,0.68525723]
[1646605548913,0.0033,39185.0,39183.0,0.447276]
[1646605549113,0.0033,39185.0,39183.0,0.798576]
[1646605549309,0.0033,39185.0,39183.0,0.898576]
[1646605549509,0.0033,39185.0,39183.0,1.09705793]
[1646605549715,0.0011,39185.0,39183.0,1.08935793]
[1646605550110,0.0011,39185.0,39183.0,1.15317693]
[1646605550311,0.0011,39185.0,39183.0,0.78935793]
[1646605550512,0.0011,39185.0,39183.0,1.08935793]
[1646605550711,0.0011,39185.0,39184.0,0.00075321]
[1646605550913,0.0011,39185.0,39184.0,0.68421021]
[1646605552360,0.0011,39185.0,39184.0,0.78421021]
[1646605552759,0.0011,39185.0,39184.0,0.79715021]
[1646605553858,0.0011,39185.0,39184.0,0.79923514]
[1646605554359,0.0011,39185.0,39184.0,0.84923514]
[1646605554560,0.0044,39188.0,39184.0,0.84923514]
[1646605554561,0.0055,39196.0,39194.0,0.1079853]
[1646605555812,0.00571295,39196.0,39194.0,0.1079853]
[1646605556809,0.0055,39196.0,39194.0,0.1079853]
[1646605557007,0.00571295,39196.0,39194.0,0.1079853]
[1646605558108,0.0055,39196.0,39194.0,0.1079853]
[1646605558411,0.005713,39196.0,39194.0,0.4914153]
[1646605559007,0.005713,39196.0,39194.0,0.49246847]
[1646605560464,0.0055,39196.0,39194.0,0.49246847]
[1646605560664,0.005713,39196.0,39194.0,0.49246847]
[1646605561267,0.004613,39196.0,39194.0,0.49246847]
[1646605561571,0.0044,39196.0,39195.0,0.38343]
[1646605561969,0.0044,39196.0,39195.0,0.40843]
[1646605562774,0.0044,39196.0,39195.0,0.45973]
[1646605563620,0.0044,39196.0,39195.0,0.75973]
[1646605565623,0.0044,39198.0,39195.0,0.75973]
[1646605565829,0.0044,39198.0,39196.0,0.063794]
[1646605566022,0.0022,39199.0,39197.0,0.38343]
[1646605566222,0.0044,39201.0,39198.0,0.3]
[1646605566424,0.0044,39201.0,39199.0,0.38343]
[1646605566623,0.0044,39201.0,39199.0,0.53734678]
[1646605566861,0.0044,39201.0,39200.0,0.3]
[1646605567063,0.0033,39202.0,39201.0,0.38343]
[1646605567461,0.0033,39202.0,39201.0,0.38981211]
[1646605567663,0.0011,39204.0,39201.0,0.68981211]
[1646605567863,0.0011,39204.0,39201.0,0.68343]
[1646605568363,0.0011,39204.0,39202.0,0.115085]
[1646605568562,0.04153974,39206.0,39203.0,0.69638123]
[1646605568762,0.0022,39207.0,39206.0,0.38343]
[1646605568964,0.0022,39207.0,39206.0,0.38980983]
[1646605570165,0.0022,39207.0,39206.0,0.38980926]
[1646605571632,0.0022,39207.0,39206.0,0.38989926]
[1646605571834,0.0022,39207.0,39206.0,0.68989926]
[1646605572032,0.0022,39207.0,39206.0,0.68989893]
[1646605572433,0.0022,39207.0,39206.0,0.71489893]
[1646605573636,0.0022,39207.0,39206.0,0.71489869]
[1646605573838,0.0022,39207.0,39206.0,0.76724279]
[1646605574246,0.36492852,39225.0,39206.0,0.76724279]
[1646605574473,0.36492852,39225.0,39215.0,0.38343]
[1646605574474,0.04248673,39221.0,39215.0,0.38343]
[1646605574669,0.04248673,39221.0,39215.0,0.0513]
[1646605574867,0.04248673,39221.0,39216.0,0.38343]
[1646605575070,0.04248673,39221.0,39215.0,0.0513]
[1646605575267,0.04248673,39221.0,39219.0,0.18824601]
[1646605575472,0.04248673,39221.0,39220.0,0.063771]
[1646605575670,0.04248673,39221.0,39215.0,0.178833]
[1646605575870,0.34248673,39221.0,39215.0,0.178833]
[1646605576073,0.04248673,39221.0,39215.0,0.178833]
[1646605576269,0.1613274,39217.0,39215.0,0.0513]
[1646605576469,0.02552,39219.0,39215.0,0.0513]
[1646605576672,0.02552,39218.0,39215.0,0.0513]
[1646605576868,0.32552,39219.0,39215.0,0.0513]
[1646605577069,0.05,39220.0,39215.0,0.0513]
[1646605577470,0.04248673,39221.0,39215.0,0.0513]
[1646605577471,0.17974666,39217.0,39215.0,0.0513]
[1646605577670,0.00010437,39219.0,39215.0,0.0513]
[1646605578345,0.0631111,39221.0,39214.0,9e-05]
[1646605578539,0.1131111,39221.0,39214.0,0.010299]
[1646605578744,0.15689498,39219.0,39214.0,0.1545643]
[1646605578941,0.15689498,39219.0,39214.0,9e-05]
[1646605579343,0.18241498,39219.0,39217.0,0.00103578]
[1646605579541,0.18218655,39219.0,39217.0,0.00067535]
[1646605579741,0.32432189,39218.0,39217.0,0.00067535]
[1646605579941,0.02552,39218.0,39217.0,0.00067535]
[1646605580142,0.40895,39218.0,39217.0,0.00067535]
[1646605580343,0.21143504,39218.0,39217.0,0.00067535]
[1646605580743,0.51023765,39218.0,39217.0,0.00067535]
[1646605580945,0.51034409,39218.0,39217.0,0.00067535]
[1646605581544,0.89377409,39218.0,39217.0,0.00067535]
[1646605581744,0.56034409,39218.0,39217.0,0.00067535]
[1646605582368,0.870521,39217.0,39215.0,9e-05]
[1646605582565,0.32475321,39216.0,39215.0,9e-05]
[1646605582767,0.37475321,39216.0,39215.0,9e-05]
[1646605583364,1.15595321,39216.0,39215.0,9e-05]
[1646605584465,0.37475321,39216.0,39215.0,9e-05]
[1646605584668,0.02552,39217.0,39215.0,9e-05]
[1646605584869,0.05,39219.0,39215.0,9e-05]
[1646605585066,0.13303353,39220.0,39215.0,9e-05]
[1646605585067,0.18303353,39220.0,39215.0,9e-05]
[1646605585270,0.17030353,39220.0,39215.0,9e-05]
[1646605585608,0.1702,39220.0,39218.0,0.16911138]
[1646605585809,0.21415599,39219.0,39218.0,0.16911138]
[1646605586709,0.05022938,39220.0,39218.0,0.16911138]
[1646605587010,0.00022938,39220.0,39218.0,0.16911138]
[1646605587609,0.00022938,39220.0,39219.0,0.025]
[1646605587808,0.19169316,39220.0,39219.0,0.025]
[1646605588011,0.0375911,39221.0,39219.0,0.025]
[1646605588211,0.03782048,39221.0,39219.0,0.025]
[1646605589215,0.26607701,39221.0,39219.0,0.025]
[1646605589466,0.0875911,39221.0,39219.0,0.025]
[1646605589666,0.0875911,39221.0,39210.0,0.38343]
[1646605589866,0.00143031,39220.0,39218.0,0.00202027]
[1646605590268,0.17112472,39220.0,39218.0,0.00202027]
[1646605590470,0.16612472,39220.0,39218.0,0.00202027]
[1646605590668,0.16612472,39220.0,39218.0,0.21573574]
[1646605590868,0.02552,39220.0,39218.0,0.21573574]
[1646605591066,0.0375911,39221.0,39218.0,0.21573574]
[1646605591267,0.02552,39220.0,39218.0,0.21573574]
[1646605591874,0.0375911,39221.0,39218.0,0.21573574]
[1646605593115,0.0375911,39221.0,39218.0,0.00202027]
[1646605593312,0.02552,39220.0,39218.0,0.00202027]
[1646605594218,0.03769481,39221.0,39218.0,0.00202027]
[1646605594421,0.03769481,39221.0,39219.0,0.1850188]
[1646605595017,0.03769481,39221.0,39219.0,0.2487878]
[1646605595217,0.0375911,39221.0,39219.0,0.2487878]
[1646605596416,0.02552,39220.0,39219.0,0.063769]
[1646605596618,0.0375911,39221.0,39219.0,0.063769]
[1646605596859,0.0375911,39221.0,39218.0,0.00103199]
[1646605597664,0.20328771,39221.0,39218.0,0.00103199]
[1646605597864,0.03782418,39221.0,39218.0,0.00103199]
[1646605598762,0.0375911,39221.0,39218.0,0.00103199]
[1646605598962,0.20881841,39221.0,39218.0,0.00103199]
[1646605599262,0.03782418,39221.0,39218.0,0.00103199]
[1646605599569,0.03782418,39221.0,39220.0,0.0009249]
[1646605599763,0.03782418,39221.0,39220.0,0.00025472]
[1646605599963,0.0375911,39221.0,39220.0,0.00025472]
[1646605604360,0.0375911,39221.0,39220.0,0.00201163]
[1646605604564,0.0375911,39221.0,39220.0,0.16254965]
[1646605604765,0.0375911,39221.0,39220.0,0.00201163]
[1646605608609,0.24614395,39221.0,39220.0,0.00201163]
[1646605608806,0.0375911,39221.0,39220.0,0.00201163]
[1646605610909,0.0375911,39221.0,39219.0,0.06078063]
[1646605611110,0.20892483,39220.0,39219.0,0.06078063]
[1646605614159,0.24673318,39221.0,39218.0,0.001]
[1646605614363,0.20892483,39220.0,39218.0,0.001]
[1646605614757,0.20892483,39220.0,39217.0,0.32453439]
[1646605614957,0.20892483,39220.0,39218.0,0.38343]
[1646605615163,0.20892483,39220.0,39217.0,0.32453439]
[1646605615458,0.20892483,39220.0,39218.0,0.38343]
[1646605615709,0.20892483,39220.0,39217.0,0.32453439]
[1646605615910,0.20914208,39220.0,39217.0,0.127531]
[1646605616514,0.20892483,39219.0,39218.0,0.38343]
[1646605619113,0.0002018,39220.0,39219.0,0.19107517]
[1646605619378,0.0002018,39220.0,39219.0,0.25484417]
[1646605619571,0.0002018,39220.0,39219.0,0.41256019]
[1646605619773,0.0002018,39220.0,39219.0,0.03634442]
[1646605620477,0.0375911,39221.0,39219.0,0.03634442]
[1646605620672,0.03779398,39221.0,39218.0,0.00088527]
[1646605621675,0.0375911,39221.0,39218.0,0.00088527]
[1646605621873,0.03779558,39221.0,39218.0,0.00088527]
[1646605622674,0.03279558,39221.0,39218.0,0.00088527]
[1646605622875,0.0325911,39221.0,39218.0,0.00088527]
[1646605623117,0.03279558,39221.0,39218.0,0.00088527]
[1646605624116,0.0325911,39221.0,39220.0,0.00092716]
[1646605624319,0.0327954,39221.0,39220.0,0.00092716]
[1646605625316,0.0325911,39221.0,39220.0,0.19882477]
[1646605625517,0.0325911,39221.0,39220.0,0.00092716]
[1646605627563,0.0275911,39221.0,39220.0,0.00092716]
[1646605628367,0.28842103,39221.0,39220.0,0.00092716]
[1646605629266,0.28842103,39221.0,39220.0,0.00088329]
[1646605629664,0.0275911,39221.0,39220.0,0.00088329]
[1646605629865,0.28842103,39221.0,39220.0,0.00088329]
[1646605630264,0.0275911,39221.0,39220.0,0.00088329]
[1646605631511,0.28842103,39221.0,39220.0,0.00088329]
[1646605634760,0.28842103,39221.0,39220.0,0.00176479]
[1646605636766,0.72484962,39221.0,39220.0,0.00124926]
[1646605636970,0.4110211,39221.0,39220.0,0.00124926]
[1646605637168,0.56026614,39221.0,39220.0,0.00124926]
[1646605637964,1.36698614,39221.0,39220.0,0.00124926]
[1646605638212,0.83578614,39221.0,39220.0,0.00124926]
[1646605638412,1.13578614,39221.0,39220.0,0.00124926]
[1646605639015,1.18708614,39221.0,39210.0,0.01273]
[1646605639217,0.26137606,39212.0,39208.0,0.00020422]
[1646605639516,0.20903366,39210.0,39208.0,0.00020422]
[1646605639719,0.3,39209.0,39201.0,0.20709264]
[1646605639915,0.3,39209.0,39208.0,0.00020419]
[1646605640117,0.23351591,39209.0,39208.0,0.00020419]
[1646605640322,0.53351591,39209.0,39208.0,0.00020419]
[1646605640920,0.53351591,39209.0,39198.0,0.42239264]
[1646605641119,0.53351591,39209.0,39207.0,0.0002042]
[1646605641120,1.36809606,39209.0,39207.0,0.0002042]
[1646605641326,1.85152606,39208.0,39207.0,0.0002042]
[1646605641518,1.59015,39208.0,39207.0,0.0002042]
[1646605641721,1.653963,39208.0,39207.0,0.0002042]
[1646605641968,1.653963,39208.0,39194.0,0.1129853]
[1646605641969,1.705263,39208.0,39194.0,0.1129853]
[1646605642168,0.900548,39200.0,39194.0,0.1129853]
[1646605642367,0.38343,39198.0,39194.0,0.1129853]
[1646605642567,0.3,39197.0,39194.0,0.1129853]
[1646605642768,0.119348,39196.0,39194.0,0.1129853]
[1646605642967,0.68343,39195.0,39194.0,0.1079853]
[1646605643170,0.49329169,39195.0,39194.0,0.0651853]
[1646605643368,0.97672169,39195.0,39194.0,0.0651853]
[1646605643568,0.59329169,39195.0,39194.0,0.0651853]
[1646605643971,0.61881169,39195.0,39194.0,0.0651853]
[1646605644369,1.00224169,39195.0,39194.0,0.06237974]
[1646605644569,0.61881169,39195.0,39194.0,0.06237974]
[1646605644772,1.00224169,39195.0,39194.0,0.06237974]
[1646605644971,0.80895,39195.0,39194.0,0.06237974]
[1646605645171,0.1,39195.0,39194.0,0.06237974]
[1646605645612,0.38343,39195.0,39194.0,0.06237974]
[1646605645811,0.48343,39195.0,39194.0,0.06237974]
[1646605646012,0.63787743,39195.0,39194.0,0.06237974]
[1646605646617,0.25444743,39195.0,39194.0,0.06237974]
[1646605646812,0.63787743,39195.0,39194.0,0.06237974]
[1646605647017,0.53787743,39195.0,39194.0,0.06237974]
[1646605647212,0.63787743,39195.0,39194.0,0.06237974]
[1646605647613,0.37379543,39195.0,39194.0,0.06237974]
[1646605647816,0.25444743,39195.0,39194.0,0.06237974]
[1646605648415,0.55444743,39195.0,39194.0,0.06237974]
[1646605649882,0.38343,39195.0,39194.0,0.06237974]
[1646605650279,0.38343,39195.0,39194.0,0.06231314]
[1646605655517,0.15,39198.0,39194.0,0.06231314]
[1646605655719,0.38343,39197.0,39194.0,0.06231314]
[1646605656616,0.38343,39197.0,39194.0,0.06252178]
[1646605656859,0.38343,39197.0,39194.0,0.00020864]
[1646605657263,0.089345,39201.0,39194.0,0.00020864]
[1646605657264,0.063821,39204.0,39195.0,0.38343]
[1646605657462,0.1,39207.0,39196.0,0.3]
[1646605657663,0.003,39201.0,39197.0,0.3]
[1646605657860,0.003,39201.0,39197.0,0.00020263]
[1646605658263,0.003,39201.0,39200.0,0.19887376]
[1646605658461,0.003,39201.0,39200.0,0.36296947]
[1646605659458,0.27368226,39211.0,39200.0,0.36296947]
[1646605659459,0.38343,39210.0,39200.0,0.36296947]
[1646605659662,0.001,39204.0,39200.0,0.36296947]
[1646605660359,0.001,39204.0,39200.0,0.36317209]
[1646605661014,0.05,39208.0,39200.0,0.36317209]
[1646605661309,0.05,39208.0,39200.0,0.36296947]
[1646605661508,0.05,39208.0,39200.0,0.3631727]
[1646605661909,0.05,39208.0,39201.0,0.0638]
[1646605662610,0.05,39208.0,39200.0,0.16429894]
[1646605662611,0.00030005,39206.0,39203.0,0.00020322]
[1646605663609,0.00030005,39206.0,39202.0,0.18529007]
[1646605663909,0.00030005,39206.0,39203.0,0.00020322]
[1646605664110,0.38343,39205.0,39203.0,0.00020322]
[1646605664362,0.00030005,39206.0,39203.0,0.00020322]
[1646605664763,0.38343,39205.0,39203.0,0.00020322]
[1646605665065,0.00030005,39206.0,39203.0,0.00020322]
[1646605665261,0.38343,39205.0,39203.0,0.00020322]
[1646605665964,0.40895,39205.0,39203.0,0.00020322]
[1646605666165,0.02552,39200.0,39194.0,0.15229799]
[1646605666367,0.02552,39200.0,39189.0,0.3]
[1646605666566,0.02552,39200.0,39186.0,0.2374]
[1646605666963,0.02552,39200.0,39187.0,0.20548864]
[1646605666964,0.16582444,39199.0,39187.0,0.20548864]
[1646605667364,0.16582444,39199.0,39190.0,0.15630558]
[1646605667570,0.16582444,39199.0,39191.0,0.00020325]
[1646605668413,0.16582444,39199.0,39187.0,0.30548864]
[1646605668614,0.16611406,39196.0,39193.0,0.00020353]
[1646605669711,0.16611406,39196.0,39188.0,0.1]
[1646605669913,0.16611406,39196.0,39193.0,0.00020353]
[1646605670812,0.38343,39195.0,39187.0,0.30648864]
[1646605671016,0.16611406,39196.0,39193.0,0.00020353]
[1646605672083,0.38343,39194.0,39187.0,0.20117453]
[1646605672284,0.16611406,39196.0,39193.0,0.00020316]
[1646605672486,0.38343,39195.0,39193.0,0.00020316]
[1646605672685,0.40895,39195.0,39193.0,0.00020316]
[1646605672887,0.02552,39195.0,39193.0,0.00020316]
[1646605673082,0.38343,39194.0,39193.0,0.00020316]
[1646605673284,0.38343,39194.0,39186.0,0.2374]
[1646605673485,0.063833,39194.0,39192.0,0.00020316]
[1646605673684,0.38343,39193.0,39192.0,0.00020316]
[1646605673887,1.00079107,39193.0,39192.0,0.00020316]
[1646605674088,1.00079107,39193.0,39192.0,0.00013917]
[1646605674486,1.00079107,39193.0,39177.0,0.3]
[1646605674686,0.80672,39191.0,39177.0,0.063837]
[1646605674886,0.19168567,39187.0,39181.0,0.15920633]
[1646605675086,0.80672,39191.0,39181.0,0.15920633]
[1646605675287,0.02552,39189.0,39181.0,0.15920633]
[1646605675494,0.02552,39189.0,39177.0,0.25981976]
[1646605675495,0.20258802,39187.0,39177.0,0.25981976]
[1646605675721,0.20258802,39187.0,39177.0,0.103]
[1646605675722,0.3,39186.0,39177.0,0.103]
[1646605675919,0.20258802,39187.0,39183.0,0.00020346]
[1646605676519,0.20429932,39185.0,39183.0,0.00020346]
[1646605676720,0.3,39186.0,39183.0,0.00020346]
[1646605676919,0.3,39186.0,39177.0,0.003]
[1646605677119,0.3,39186.0,39182.0,0.00020347]
[1646605677618,0.15178346,39185.0,39182.0,0.00020347]
[1646605678220,0.15178346,39185.0,39176.0,0.25620426]
[1646605678420,0.15178346,39185.0,39182.0,0.00020347]
[1646605678720,0.20258802,39187.0,39182.0,0.00020347]
[1646605679367,0.3,39186.0,39176.0,0.25620426]
[1646605679568,0.51402964,39186.0,39183.0,0.0002032]
[1646605679767,0.15855364,39188.0,39183.0,0.0002032]
[1646605679968,0.38343,39187.0,39183.0,0.0002032]
[1646605680571,0.37886869,39189.0,39178.0,0.003]
[1646605680765,0.37886869,39189.0,39183.0,0.0002032]
[1646605680966,0.38343,39188.0,39183.0,0.0002032]
[1646605681666,0.38343,39188.0,39179.0,0.002]